[Event "MČR v bleskovém šachu družstev 2019"]
[Site "Teplice, Czech Republic"]
[Date "2019.09.14"]
[Round "4.18"]
[White "Markovic, Milan"]
[Black "Bohdal, Jan"]
[Result "0-1"]
[TimeControl "3 mim. + 2 s"]
[WhiteFideId "305103"]
[BlackFideId "14909766"]
[WhiteElo "2113"]
[BlackElo "1879"]

1. e4 {[%clk 00:03:02]} {[%emt 00:00:02]} d5 {[%clk 00:03:03]} {[%emt
00:00:01]} 2. exd5 {[%clk 00:03:02]} {[%emt 00:00:01]} Nf6 {[%clk 00:03:04]} 3.
d4 {[%clk 00:03:00]} {[%emt 00:00:05]} Nxd5 {[%clk 00:03:04]} {[%emt 00:00:02]}
4. Be2 {[%clk 00:03:01]} Nc6 {[%clk 00:03:03]} {[%emt 00:00:03]} 5. c4 {[%clk
00:03:00]} {[%emt 00:00:04]} Nf6 {[%clk 00:03:04]} 6. d5 {[%clk 00:03:01]}
{[%emt 00:00:01]} Nb8 {[%clk 00:03:00]} {[%emt 00:00:06]} 7. Nc3 {[%clk
00:02:52]} {[%emt 00:00:11]} e6 {[%clk 00:03:00]} {[%emt 00:00:01]} 8. Bg5
{[%clk 00:02:53]} {[%emt 00:00:01]} Be7 {[%clk 00:02:58]} {[%emt 00:00:05]} 9.
h4 {[%clk 00:01:59]} {[%emt 00:00:56]} exd5 {[%clk 00:02:52]} {[%emt 00:00:07]}
10. cxd5 {[%clk 00:02:00]} {[%emt 00:00:01]} h6 {[%clk 00:02:47]} {[%emt
00:00:08]} 11. Be3 {[%clk 00:01:56]} {[%emt 00:00:06]} O-O {[%clk 00:02:41]}
{[%emt 00:00:07]} 12. Qd2 {[%clk 00:01:57]} c6 {[%clk 00:02:30]} {[%emt
00:00:14]} 13. dxc6 {[%clk 00:00:45]} {[%emt 00:01:14]} Qxd2+ {[%clk 00:02:30]}
{[%emt 00:00:03]} 14. Bxd2 {[%clk 00:00:46]} {[%emt 00:00:01]} Nxc6 {[%clk
00:02:30]} {[%emt 00:00:02]} 15. Nf3 {[%clk 00:00:47]} {[%emt 00:00:01]} Bf5
{[%clk 00:02:22]} {[%emt 00:00:09]} 16. O-O {[%clk 00:00:47]} {[%emt 00:00:03]}
Rad8 {[%clk 00:02:17]} {[%emt 00:00:06]} 17. Be3 {[%clk 00:00:48]} {[%emt
00:00:02]} Bb4 {[%clk 00:02:03]} {[%emt 00:00:16]} 18. Rac1 {[%clk 00:00:47]}
{[%emt 00:00:03]} Ng4 {[%clk 00:01:46]} {[%emt 00:00:19]} 19. Bf4 {[%clk
00:00:42]} {[%emt 00:00:07]} Bd6 {[%clk 00:01:30]} {[%emt 00:00:17]} 20. Bxd6
{[%clk 00:00:29]} {[%emt 00:00:15]} Rxd6 {[%clk 00:01:31]} {[%emt 00:00:01]} 21.
Nb5 {[%clk 00:00:28]} {[%emt 00:00:03]} Re6 {[%clk 00:01:19]} {[%emt 00:00:13]}
22. Bc4 {[%clk 00:00:27]} {[%emt 00:00:04]} Re7 {[%clk 00:01:13]} {[%emt
00:00:08]} 23. Nfd4 {[%clk 00:00:25]} {[%emt 00:00:05]} Nxd4 {[%clk 00:01:10]}
{[%emt 00:00:05]} 24. Nxd4 {[%clk 00:00:26]} Bg6 {[%clk 00:00:56]} {[%emt
00:00:15]} 0-1

[Event "MČR v bleskovém šachu družstev 2019"]
[Site "Teplice, Czech Republic"]
[Date "2019.09.14"]
[Round "4.19"]
[White "Pechanek, Krystof"]
[Black "Srba, Milan"]
[Result "0-1"]
[TimeControl "3 mim. + 2 s"]
[WhiteFideId "23719869"]
[BlackFideId "321575"]
[WhiteElo "1848"]
[BlackElo "2195"]

1. d4 {[%clk 00:03:03]} d5 {[%clk 00:03:00]} {[%emt 00:00:05]} 2. Bf4 {[%clk
00:03:04]} {[%emt 00:00:01]} Nf6 {[%clk 00:03:00]} {[%emt 00:00:02]} 3. e3
{[%clk 00:03:05]} {[%emt 00:00:01]} c5 {[%clk 00:03:00]} {[%emt 00:00:01]} 4.
c3 {[%clk 00:03:06]} {[%emt 00:00:02]} Nc6 {[%clk 00:02:59]} {[%emt 00:00:03]}
5. Nf3 {[%clk 00:03:07]} {[%emt 00:00:02]} Qb6 {[%clk 00:02:59]} {[%emt
00:00:02]} 6. Qc2 {[%clk 00:03:06]} {[%emt 00:00:03]} Bf5 {[%clk 00:02:49]}
{[%emt 00:00:11]} 7. Qb3 {[%clk 00:02:49]} {[%emt 00:00:18]} c4 {[%clk
00:02:43]} {[%emt 00:00:09]} 8. Qxb6 {[%clk 00:02:43]} {[%emt 00:00:07]} axb6
{[%clk 00:02:44]} {[%emt 00:00:02]} 9. Nbd2 {[%clk 00:02:42]} {[%emt 00:00:03]}
b5 {[%clk 00:02:42]} {[%emt 00:00:05]} 10. Be2 {[%clk 00:02:39]} {[%emt
00:00:04]} b4 {[%clk 00:02:37]} {[%emt 00:00:08]} 11. O-O {[%clk 00:02:28]}
{[%emt 00:00:12]} bxc3 {[%clk 00:02:36]} {[%emt 00:00:04]} 12. bxc3 {[%clk
00:02:28]} {[%emt 00:00:02]} h6 {[%clk 00:02:36]} {[%emt 00:00:01]} 13. Be5
{[%clk 00:02:27]} {[%emt 00:00:03]} Nd7 {[%clk 00:01:43]} {[%emt 00:00:55]} 14.
Bg3 {[%clk 00:02:21]} {[%emt 00:00:08]} e6 {[%clk 00:01:43]} {[%emt 00:00:02]}
15. Nh4 {[%clk 00:02:19]} {[%emt 00:00:03]} Bh7 {[%clk 00:01:44]} {[%emt
00:00:02]} 16. Nhf3 {[%clk 00:02:13]} {[%emt 00:00:08]} b5 {[%clk 00:01:42]}
{[%emt 00:00:04]} 17. Rfc1 {[%clk 00:02:10]} {[%emt 00:00:05]} Be7 {[%clk
00:01:35]} {[%emt 00:00:09]} 18. Re1 {[%clk 00:01:59]} {[%emt 00:00:12]} Nb6
{[%clk 00:01:31]} {[%emt 00:00:07]} 19. Ne5 {[%clk 00:01:57]} {[%emt 00:00:05]}
Nxe5 {[%clk 00:01:27]} {[%emt 00:00:05]} 20. Bxe5 {[%clk 00:01:57]} {[%emt
00:00:01]} f6 {[%clk 00:01:27]} {[%emt 00:00:03]} 21. Bg3 {[%clk 00:01:56]}
{[%emt 00:00:02]} Na4 {[%clk 00:01:25]} {[%emt 00:00:05]} 22. Bg4 {[%clk
00:01:39]} {[%emt 00:00:19]} Kf7 {[%clk 00:01:13]} {[%emt 00:00:13]} 23. Bh5+
{[%clk 00:01:37]} {[%emt 00:00:04]} g6 {[%clk 00:01:14]} {[%emt 00:00:02]} 24.
Bf3 {[%clk 00:01:34]} {[%emt 00:00:05]} Nxc3 {[%clk 00:01:13]} {[%emt
00:00:03]} 25. Rec1 {[%clk 00:01:25]} {[%emt 00:00:11]} b4 {[%clk 00:01:12]}
{[%emt 00:00:03]} 26. a3 {[%clk 00:01:17]} {[%emt 00:00:11]} Rhc8 {[%clk
00:00:45]} {[%emt 00:00:28]} 27. axb4 {[%clk 00:01:13]} {[%emt 00:00:07]} Bxb4
{[%clk 00:00:40]} {[%emt 00:00:06]} 28. Rxa8 {[%clk 00:01:10]} {[%emt
00:00:05]} Rxa8 {[%clk 00:00:41]} {[%emt 00:00:02]} 29. h3 {[%clk 00:01:09]}
{[%emt 00:00:02]} g5 {[%clk 00:00:41]} {[%emt 00:00:02]} 30. Bh5+ {[%clk
00:01:09]} {[%emt 00:00:02]} Ke7 {[%clk 00:00:42]} {[%emt 00:00:01]} 31. Bf3
{[%clk 00:01:00]} {[%emt 00:00:12]} Ra2 {[%clk 00:00:42]} {[%emt 00:00:02]} 32.
Nf1 {[%clk 00:00:54]} {[%emt 00:00:08]} Be4 {[%clk 00:00:39]} {[%emt 00:00:04]}
33. Bxe4 {[%clk 00:00:51]} {[%emt 00:00:04]} Ne2+ {[%clk 00:00:38]} {[%emt
00:00:03]} 34. Kh2 {[%clk 00:00:49]} {[%emt 00:00:05]} Nxc1 {[%clk 00:00:39]}
{[%emt 00:00:01]} 35. Bb1 {[%clk 00:00:49]} {[%emt 00:00:02]} Ra1 {[%clk
00:00:39]} {[%emt 00:00:02]} 36. Bg6 {[%clk 00:00:40]} {[%emt 00:00:11]} f5
{[%clk 00:00:29]} {[%emt 00:00:12]} 37. Be5 {[%clk 00:00:37]} {[%emt 00:00:05]}
Nd3 {[%clk 00:00:29]} {[%emt 00:00:02]} 38. Ng3 {[%clk 00:00:35]} {[%emt
00:00:04]} Nxf2 {[%clk 00:00:29]} {[%emt 00:00:03]} 39. Nh5 {[%clk 00:00:29]}
{[%emt 00:00:08]} Bd6 {[%clk 00:00:28]} {[%emt 00:00:02]} 40. Bxd6+ {[%clk
00:00:19]} {[%emt 00:00:15]} Kxd6 {[%clk 00:00:29]} {[%emt 00:00:02]} 41. Bf7
{[%clk 00:00:18]} {[%emt 00:00:03]} Ne4 {[%clk 00:00:28]} {[%emt 00:00:03]} 42.
Bg6 {[%clk 00:00:14]} {[%emt 00:00:05]} c3 {[%clk 00:00:30]} 43. g4 {[%clk
00:00:09]} {[%emt 00:00:08]} fxg4 {[%clk 00:00:28]} {[%emt 00:00:03]} 44. Bxe4
{[%clk 00:00:08]} {[%emt 00:00:03]} dxe4 {[%clk 00:00:29]} {[%emt 00:00:01]} 45.
Ng3 {[%clk 00:00:07]} {[%emt 00:00:03]} c2 {[%clk 00:00:29]} {[%emt 00:00:03]}
46. Nxe4+ {[%clk 00:00:08]} Ke7 {[%clk 00:00:29]} {[%emt 00:00:02]} 47. hxg4
{[%clk 00:00:05]} {[%emt 00:00:04]} c1=Q {[%clk 00:00:27]} {[%emt 00:00:03]} 48.
Ng3 {[%clk 00:00:05]} {[%emt 00:00:03]} Qxe3 {[%clk 00:00:23]} {[%emt
00:00:07]} 49. d5 {[%clk 00:00:04]} {[%emt 00:00:02]} Ra2+ {[%clk 00:00:23]}
{[%emt 00:00:02]} 50. Kh3 {[%clk 00:00:04]} {[%emt 00:00:02]} Ra3 {[%clk
00:00:24]} 51. dxe6 {[%clk 00:00:03]} {[%emt 00:00:03]} Qxg3# {[%clk 00:03:02]}
{[%emt 00:00:02]} 0-1

[Event "MČR v bleskovém šachu družstev 2019"]
[Site "Teplice, Czech Republic"]
[Date "2019.09.14"]
[Round "4.21"]
[White "Babicka, Michal"]
[Black "Sykora, Ondrej"]
[Result "0-1"]
[TimeControl "3 mim. + 2 s"]
[WhiteElo "2076"]
[BlackElo "2122"]

1. e4 {[%clk 00:02:51]} {[%emt 00:00:12]} e5 {[%clk 00:02:52]} {[%emt
00:00:13]} 2. Nf3 {[%clk 00:02:52]} Nc6 {[%clk 00:02:53]} 3. d4 {[%clk
00:02:53]} {[%emt 00:00:03]} exd4 {[%clk 00:02:54]} 4. Bc4 {[%clk 00:02:54]}
Bc5 {[%clk 00:02:54]} {[%emt 00:00:02]} 5. c3 {[%clk 00:02:55]} Nf6 {[%clk
00:02:54]} {[%emt 00:00:02]} 6. e5 {[%clk 00:02:55]} {[%emt 00:00:02]} d5
{[%clk 00:02:54]} {[%emt 00:00:02]} 7. Bb5 {[%clk 00:02:57]} Ne4 {[%clk
00:02:55]} {[%emt 00:00:01]} 8. cxd4 {[%clk 00:02:52]} {[%emt 00:00:07]} Bb6
{[%clk 00:02:55]} 9. O-O {[%clk 00:02:50]} {[%emt 00:00:04]} O-O {[%clk
00:02:56]} {[%emt 00:00:01]} 10. Bxc6 {[%clk 00:02:50]} {[%emt 00:00:02]} bxc6
{[%clk 00:02:56]} {[%emt 00:00:02]} 11. Nc3 {[%clk 00:02:45]} {[%emt 00:00:07]}
f6 {[%clk 00:02:56]} {[%emt 00:00:03]} 12. a4 {[%clk 00:02:41]} {[%emt
00:00:06]} a5 {[%clk 00:02:45]} {[%emt 00:00:13]} 13. exf6 {[%clk 00:02:25]}
{[%emt 00:00:19]} Qxf6 {[%clk 00:02:25]} {[%emt 00:00:21]} 14. Be3 {[%clk
00:02:20]} {[%emt 00:00:07]} Bg4 {[%clk 00:02:24]} {[%emt 00:00:03]} 15. Kh1
{[%clk 00:01:03]} {[%emt 00:01:20]} Bxf3 {[%clk 00:02:08]} {[%emt 00:00:18]} 16.
Qxf3 {[%clk 00:01:03]} {[%emt 00:00:01]} Qxf3 {[%clk 00:02:09]} 17. gxf3 {[%clk
00:01:04]} {[%emt 00:00:01]} Rxf3 {[%clk 00:02:09]} {[%emt 00:00:01]} 18. Nxe4
{[%clk 00:00:58]} {[%emt 00:00:09]} dxe4 {[%clk 00:02:09]} {[%emt 00:00:02]} 19.
Rac1 {[%clk 00:00:59]} Raf8 {[%clk 00:02:08]} {[%emt 00:00:04]} 20. Rg1 {[%clk
00:00:54]} {[%emt 00:00:07]} R8f6 {[%clk 00:02:08]} {[%emt 00:00:02]} 21. Rg4
{[%clk 00:00:42]} {[%emt 00:00:14]} Re6 {[%clk 00:02:08]} {[%emt 00:00:02]} 22.
Kg2 {[%clk 00:00:39]} {[%emt 00:00:04]} Rf5 {[%clk 00:01:49]} {[%emt 00:00:22]}
23. h4 {[%clk 00:00:34]} {[%emt 00:00:07]} Kf7 {[%clk 00:01:47]} {[%emt
00:00:04]} 24. d5 {[%clk 00:00:25]} {[%emt 00:00:12]} Rxd5 {[%clk 00:01:33]}
{[%emt 00:00:16]} 25. Bxb6 {[%clk 00:00:23]} {[%emt 00:00:03]} cxb6 {[%clk
00:01:34]} 26. Rc3 {[%clk 00:00:25]} g6 {[%clk 00:00:58]} {[%emt 00:00:39]} 27.
Rb3 {[%clk 00:00:23]} {[%emt 00:00:05]} b5 {[%clk 00:00:59]} {[%emt 00:00:01]}
28. axb5 {[%clk 00:00:22]} {[%emt 00:00:03]} cxb5 {[%clk 00:01:00]} {[%emt
00:00:01]} 29. Rc3 {[%clk 00:00:22]} Kf6 {[%clk 00:00:44]} {[%emt 00:00:18]} 30.
Rc7 {[%clk 00:00:16]} {[%emt 00:00:08]} h6 {[%clk 00:00:43]} {[%emt 00:00:02]}
31. Rb7 {[%clk 00:00:06]} {[%emt 00:00:12]} a4 {[%clk 00:00:43]} {[%emt
00:00:03]} 32. Kg3 {[%clk 00:00:07]} {[%emt 00:00:02]} Rf5 {[%clk 00:00:38]}
{[%emt 00:00:07]} 33. Kg2 {[%clk 00:00:03]} {[%emt 00:00:05]} g5 {[%clk
00:00:34]} {[%emt 00:00:05]} 34. h5 {[%clk 00:00:03]} {[%emt 00:00:03]} Rc5
{[%clk 00:00:28]} {[%emt 00:00:07]} 35. Rg3 {[%clk 00:00:04]} {[%emt 00:00:02]}
Rc2 {[%clk 00:00:29]} 36. Re3 {[%clk 00:00:06]} {[%emt 00:00:01]} Rxb2 {[%clk
00:00:29]} {[%emt 00:00:01]} 37. Rc3 {[%clk 00:00:07]} {[%emt 00:00:02]} b4
{[%clk 00:00:30]} {[%emt 00:00:01]} 38. Rcc7 {[%clk 00:00:08]} a3 {[%clk
00:00:30]} {[%emt 00:00:02]} 39. Rf7+ {[%clk 00:00:09]} Ke5 {[%clk 00:00:31]}
{[%emt 00:00:02]} 40. Rb5+ {[%clk 00:00:09]} {[%emt 00:00:01]} Kd4 {[%clk
00:00:32]} 41. Rfb7 {[%clk 00:00:10]} {[%emt 00:00:02]} Kc4 {[%clk 00:00:33]}
42. Ra5 {[%clk 00:00:10]} {[%emt 00:00:02]} a2 {[%clk 00:00:33]} {[%emt
00:00:01]} 0-1

[Event "MČR v bleskovém šachu družstev 2019"]
[Site "Teplice, Czech Republic"]
[Date "2019.09.14"]
[Round "4.22"]
[White "Hacha, Ales"]
[Black "Mach, Petr"]
[Result "1-0"]
[TimeControl "3 mim. + 2 s"]
[WhiteElo "2065"]
[BlackElo "1961"]

1. c4 {[%clk 00:03:02]} {[%emt 00:00:02]} c5 {[%clk 00:03:00]} {[%emt
00:00:04]} 2. Nf3 {[%clk 00:03:03]} {[%emt 00:00:01]} Nc6 {[%emt 00:00:02]} 3.
g3 {[%emt 00:00:01]} g6 {[%clk 00:03:02]} 4. Bg2 {[%clk 00:03:06]} Bg7 {[%clk
00:03:03]} 5. O-O {[%clk 00:03:06]} {[%emt 00:00:01]} e5 {[%clk 00:03:04]}
{[%emt 00:00:02]} 6. Nc3 {[%clk 00:03:06]} {[%emt 00:00:02]} d6 {[%clk
00:03:05]} {[%emt 00:00:01]} 7. e3 {[%clk 00:02:58]} {[%emt 00:00:10]} Nge7
{[%clk 00:03:03]} {[%emt 00:00:05]} 8. a3 {[%clk 00:02:26]} {[%emt 00:00:34]}
O-O {[%clk 00:03:01]} {[%emt 00:00:04]} 9. Rb1 {[%clk 00:02:25]} {[%emt
00:00:03]} a5 {[%clk 00:02:59]} {[%emt 00:00:04]} 10. Nb5 {[%clk 00:02:19]}
{[%emt 00:00:08]} Be6 {[%clk 00:02:30]} {[%emt 00:00:30]} 11. b3 {[%clk
00:02:19]} {[%emt 00:00:02]} d5 {[%clk 00:01:47]} {[%emt 00:00:45]} 12. cxd5
{[%clk 00:01:59]} {[%emt 00:00:22]} Nxd5 {[%clk 00:01:42]} {[%emt 00:00:07]} 13.
Bb2 {[%clk 00:01:51]} {[%emt 00:00:10]} Qb6 {[%clk 00:01:19]} {[%emt 00:00:24]}
14. a4 {[%clk 00:01:45]} {[%emt 00:00:09]} h6 {[%clk 00:01:21]} 15. d4 {[%clk
00:01:37]} {[%emt 00:00:10]} cxd4 {[%clk 00:01:04]} {[%emt 00:00:18]} 16. exd4
{[%clk 00:01:37]} {[%emt 00:00:02]} exd4 {[%clk 00:00:59]} {[%emt 00:00:07]} 17.
Nfxd4 {[%clk 00:01:37]} {[%emt 00:00:02]} Nxd4 {[%clk 00:00:49]} {[%emt
00:00:12]} 18. Bxd4 {[%clk 00:01:38]} {[%emt 00:00:02]} Bxd4 {[%clk 00:00:43]}
{[%emt 00:00:08]} 19. Qxd4 {[%clk 00:01:38]} Qxd4 {[%clk 00:00:29]} {[%emt
00:00:16]} 20. Nxd4 {[%clk 00:01:39]} {[%emt 00:00:01]} Rac8 {[%clk 00:00:11]}
{[%emt 00:00:20]} 21. Rb2 {[%clk 00:01:33]} {[%emt 00:00:08]} b6 {[%clk
00:00:12]} {[%emt 00:00:02]} 22. Re1 {[%clk 00:01:31]} {[%emt 00:00:04]} Rfe8
{[%clk 00:00:11]} {[%emt 00:00:03]} 23. h3 {[%clk 00:01:23]} {[%emt 00:00:10]}
Nb4 {[%clk 00:00:11]} 24. Nxe6 {[%clk 00:01:19]} {[%emt 00:00:06]} fxe6 {[%clk
00:00:12]} 25. Re3 {[%clk 00:01:14]} {[%emt 00:00:07]} Rc1+ {[%clk 00:00:11]}
{[%emt 00:00:03]} 26. Kh2 {[%clk 00:01:15]} {[%emt 00:00:01]} Nc2 {[%clk
00:00:10]} {[%emt 00:00:03]} 27. Rc3 {[%clk 00:01:15]} {[%emt 00:00:02]} Rf8
{[%clk 00:00:05]} {[%emt 00:00:08]} 28. Rcxc2 {[%clk 00:01:15]} {[%emt
00:00:02]} Re1 {[%clk 00:00:06]} 29. Re2 {[%clk 00:01:14]} {[%emt 00:00:03]}
Rc1 {[%clk 00:00:07]} {[%emt 00:00:01]} 30. Rxe6 {[%clk 00:01:14]} {[%emt
00:00:03]} Kg7 {[%clk 00:00:08]} {[%emt 00:00:01]} 31. Be4 {[%clk 00:01:12]}
{[%emt 00:00:03]} Rd8 {[%clk 00:00:07]} {[%emt 00:00:03]} 32. Rxg6+ {[%clk
00:01:12]} {[%emt 00:00:02]} Kf7 {[%clk 00:00:09]} 33. Rg4 {[%clk 00:01:12]}
{[%emt 00:00:02]} Rdd1 {[%clk 00:00:09]} {[%emt 00:00:01]} 34. Rf4+ {[%clk
00:01:12]} {[%emt 00:00:03]} Ke6 {[%clk 00:00:10]} 35. Re2 {[%clk 00:01:12]}
{[%emt 00:00:02]} Kd6 {[%clk 00:00:11]} {[%emt 00:00:01]} 36. Rf6+ {[%clk
00:01:09]} {[%emt 00:00:05]} Kc5 {[%clk 00:00:10]} {[%emt 00:00:03]} 37. Rc6+
{[%clk 00:01:10]} Kb4 {[%clk 00:00:11]} {[%emt 00:00:01]} 38. Rxc1 {[%clk
00:01:10]} {[%emt 00:00:02]} Rxc1 {[%clk 00:00:13]} 39. Bd5 {[%clk 00:01:11]}
{[%emt 00:00:01]} Rd1 {[%clk 00:00:13]} {[%emt 00:00:02]} 40. Bc4 {[%clk
00:01:12]} {[%emt 00:00:01]} Rc1 {[%clk 00:00:14]} {[%emt 00:00:01]} 41. Kg2
{[%clk 00:01:13]} {[%emt 00:00:01]} Rxc4 {[%clk 00:00:14]} {[%emt 00:00:02]} 42.
bxc4 {[%clk 00:01:14]} {[%emt 00:00:02]} Kxc4 {[%clk 00:00:15]} 43. Re6 {[%clk
00:01:15]} {[%emt 00:00:01]} Kb4 {[%clk 00:00:16]} 44. Rxb6+ {[%clk 00:01:16]}
{[%emt 00:00:01]} Kxa4 {[%clk 00:00:17]} 45. Rxh6 {[%clk 00:01:17]} {[%emt
00:00:02]} Kb3 {[%clk 00:00:18]} 46. Ra6 {[%clk 00:01:18]} {[%emt 00:00:01]} a4
{[%clk 00:00:20]} 47. Rxa4 {[%clk 00:01:19]} Kxa4 {[%clk 00:00:21]} 48. h4
{[%clk 00:01:20]} 1-0

[Event "MČR v bleskovém šachu družstev 2019"]
[Site "Teplice, Czech Republic"]
[Date "2019.09.14"]
[Round "4.23"]
[White "Popper, Tomas"]
[Black "Zima, Jan"]
[Result "1-0"]
[TimeControl "3 mim. + 2 s"]
[WhiteElo "2088"]
[BlackElo "2048"]

1. Nf3 {[%clk 00:03:01]} {[%emt 00:00:02]} Nf6 {[%clk 00:03:03]} 2. b4 {[%clk
00:03:03]} {[%emt 00:00:01]} g6 {[%clk 00:03:04]} {[%emt 00:00:02]} 3. Bb2
{[%clk 00:03:04]} {[%emt 00:00:01]} Bg7 {[%clk 00:03:05]} 4. e3 {[%clk
00:03:05]} O-O {[%clk 00:03:05]} {[%emt 00:00:02]} 5. d4 {[%clk 00:03:06]} d5
{[%clk 00:03:05]} {[%emt 00:00:02]} 6. Be2 {[%clk 00:03:07]} {[%emt 00:00:02]}
b6 {[%clk 00:03:05]} {[%emt 00:00:02]} 7. b5 {[%clk 00:03:07]} {[%emt
00:00:02]} a6 {[%clk 00:03:04]} {[%emt 00:00:02]} 8. a4 {[%clk 00:03:08]} axb5
{[%clk 00:03:05]} {[%emt 00:00:02]} 9. axb5 {[%clk 00:03:09]} Rxa1 {[%clk
00:03:06]} 10. Bxa1 {[%clk 00:03:09]} Bf5 {[%clk 00:02:31]} {[%emt 00:00:38]}
11. Nbd2 {[%clk 00:03:06]} {[%emt 00:00:04]} c5 {[%clk 00:02:06]} {[%emt
00:00:27]} 12. bxc6 {[%clk 00:03:06]} {[%emt 00:00:03]} Nxc6 {[%clk 00:02:07]}
13. O-O {[%clk 00:02:59]} {[%emt 00:00:09]} Qc7 {[%clk 00:01:32]} {[%emt
00:00:38]} 14. c4 {[%clk 00:02:59]} {[%emt 00:00:02]} e6 {[%clk 00:01:20]}
{[%emt 00:00:13]} 15. Qb3 {[%clk 00:02:45]} {[%emt 00:00:16]} Na5 {[%clk
00:01:15]} {[%emt 00:00:08]} 16. Qb4 {[%clk 00:02:45]} {[%emt 00:00:01]} Rc8
{[%clk 00:01:04]} {[%emt 00:00:13]} 17. cxd5 {[%clk 00:02:41]} {[%emt
00:00:06]} exd5 {[%clk 00:00:37]} {[%emt 00:00:29]} 18. h3 {[%clk 00:02:02]}
{[%emt 00:00:41]} Bf8 {[%clk 00:00:38]} {[%emt 00:00:01]} 19. Qb5 {[%clk
00:01:49]} {[%emt 00:00:15]} Bd7 {[%clk 00:00:29]} {[%emt 00:00:12]} 20. Qb1
{[%clk 00:01:43]} {[%emt 00:00:08]} Nc4 {[%clk 00:00:20]} {[%emt 00:00:11]} 21.
Bd3 {[%clk 00:01:05]} {[%emt 00:00:39]} b5 {[%clk 00:00:18]} {[%emt 00:00:04]}
22. Nb3 {[%clk 00:01:04]} {[%emt 00:00:03]} Qb7 {[%clk 00:00:17]} {[%emt
00:00:04]} 23. Nc5 {[%clk 00:01:02]} {[%emt 00:00:04]} Qc6 {[%clk 00:00:09]}
{[%emt 00:00:10]} 24. Nxd7 {[%clk 00:00:55]} {[%emt 00:00:08]} Nxd7 {[%clk
00:00:10]} {[%emt 00:00:01]} 25. Ne5 {[%clk 00:00:54]} {[%emt 00:00:04]} Ndxe5
26. dxe5 {[%clk 00:00:55]} Qd7 {[%clk 00:00:08]} {[%emt 00:00:02]} 27. Bd4
{[%clk 00:00:53]} {[%emt 00:00:04]} Rb8 {[%clk 00:00:08]} 28. f4 {[%clk
00:00:50]} {[%emt 00:00:05]} Bg7 {[%clk 00:00:08]} {[%emt 00:00:03]} 29. Kh2
{[%clk 00:00:46]} {[%emt 00:00:06]} b4 {[%clk 00:00:07]} {[%emt 00:00:03]} 30.
Qb3 {[%clk 00:00:46]} {[%emt 00:00:01]} Qc6 {[%clk 00:00:08]} {[%emt 00:00:01]}
31. Rc1 {[%clk 00:00:38]} {[%emt 00:00:10]} Qa6 {[%clk 00:00:09]} 32. Rc2
{[%clk 00:00:35]} {[%emt 00:00:05]} Na3 {[%clk 00:00:07]} {[%emt 00:00:04]} 33.
Bxa6 {[%clk 00:00:33]} {[%emt 00:00:05]} 1-0